fUST/lending_fUST_20240814
["ID","MTS","AMOUNT","RATE_DAILY","PERIOD"]
[334899712,1723632652897,-500.0,0.00014246,2]
[334899713,1723632652907,-500.0,0.00014246,2]
[334899714,1723632652917,-401.84719194,0.00014246,2]
[334899715,1723632653300,-200.0,7.82e-05,2]
[334899716,1723632653309,-400.0,9.19e-05,2]
[334899717,1723632653319,-600.0,0.00011193,2]
[334899718,1723632653329,-800.0,0.00013534,2]
[334899719,1723632653338,-500.0,0.00013698,2]
[334899720,1723632653347,-500.0,0.00013972,2]
[334899721,1723632653357,-98.15280806,0.00014246,2]
[334899722,1723632653367,-500.0,0.00014246,2]
[334899723,1723632653388,-3774.311217,0.00014246,2]
[334899724,1723632653399,-500.0,0.00014246,2]
[334899725,1723632653408,-500.0,0.00014246,2]
[334899726,1723632653418,-3774.311217,0.00014246,2]
[334899727,1723632653428,-500.0,0.00014246,2]
[334899728,1723632653439,-500.0,0.00014246,2]
[334899729,1723632653448,-500.0,0.00014246,2]
[334899730,1723632653461,-500.0,0.00014246,2]
[334899731,1723632653473,-1169.6,0.00014246,2]
[334899732,1723632653482,-500.0,0.00014246,2]
[334899733,1723632653492,-500.0,0.00014246,2]
[334899734,1723632653501,-500.0,0.00014246,2]
[334899735,1723632653510,-500.0,0.00014246,2]
[334899736,1723632653520,-500.0,0.00014246,2]
[334899737,1723632653531,-500.0,0.00014246,2]
[334899738,1723632653540,-513.03660239,0.00014246,2]
[334899739,1723632653549,-500.0,0.00014246,2]
[334899740,1723632653559,-538.46092112,0.00014246,2]
[334899741,1723632653568,-507.81619924,0.00014246,2]
[334899742,1723632653578,-500.0,0.00014246,2]
[334899743,1723632653587,-151.0,0.00014246,2]
[334899744,1723632653597,-1035.68,0.00014246,2]
[334899745,1723632653606,-500.0,0.00014246,2]
[334899746,1723632653616,-151.0,0.00014246,2]
[334899747,1723632653628,-562.68,0.00014246,2]
[334899748,1723632653638,-500.0,0.00014246,2]
[334899749,1723632653647,-500.0,0.00014246,2]
[334899750,1723632653657,-229.903767,0.00014246,2]
[334899751,1723632653667,-500.0,0.00014246,2]
[334899752,1723632653677,-718.48,0.00014246,2]
[334899753,1723632653686,-500.0,0.00014246,2]
[334899754,1723632653695,-229.903767,0.00014246,2]
[334899755,1723632653704,-500.0,0.00014246,2]
[334899756,1723632653714,-642.07,0.00014246,2]
[334899757,1723632653724,-505.54971307,0.00014246,2]
[334899758,1723632653734,-500.0,0.00014246,2]
[334899759,1723632653744,-503.16807931,0.00014246,2]
[334899760,1723632653753,-151.0,0.00014246,2]
[334899761,1723632653762,-754.57,0.00014246,2]
[334899762,1723632653772,-500.0,0.00014246,2]
[334899763,1723632653781,-509.01488994,0.00014246,2]
[334899764,1723632653791,-500.0,0.00014246,2]
[334899765,1723632653800,-838.08,0.00014246,2]
[334899766,1723632653809,-500.0,0.00014246,2]
[334899767,1723632653818,-500.0,0.00014246,2]
[334899768,1723632653828,-829.71,0.00014246,2]
[334899769,1723632653837,-500.0,0.00014246,2]
[334899770,1723632653847,-505.05136859,0.00014246,2]
[334899771,1723632653856,-151.0,0.00014246,2]
[334899772,1723632653865,-500.0,0.00014246,2]
[334899773,1723632653881,-500.0,0.00014246,2]
[334899774,1723632653890,-500.0,0.00014246,2]
[334899775,1723632653899,-500.0,0.00014246,2]
[334899776,1723632653909,-500.0,0.00014246,2]
[334899777,1723632653919,-2899.15,0.00014246,2]
[334899778,1723632653929,-500.0,0.00014246,2]
[334899779,1723632653939,-500.0,0.00014246,2]
[334899780,1723632653948,-745.65,0.00014246,2]
[334899781,1723632653957,-500.0,0.00014246,2]
[334899782,1723632654075,-500.0,0.00014246,2]
[334899783,1723632654084,-500.0,0.00014246,2]
[334899784,1723632654093,-500.0,0.00014246,2]
[334899785,1723632654102,-500.0,0.00014246,2]
[334899786,1723632654112,-514.02,0.00014246,2]
[334899787,1723632654121,-518.6512241,0.00014246,2]
[334899788,1723632654131,-236.83009048,0.00014246,2]
[334899789,1723632654141,-500.0,0.00014246,2]
[334899790,1723632654150,-500.0,0.00014246,2]
[334899791,1723632654159,-500.0,0.00014246,2]
[334899792,1723632654169,-4316.81,0.00014246,2]
[334899793,1723632654179,-500.0,0.00014246,2]
[334899794,1723632654188,-500.0,0.00014246,2]
[334899795,1723632654202,-500.0,0.00014246,2]
[334899796,1723632654211,-500.0,0.00014246,2]
[334899797,1723632654222,-508.5312844,0.00014246,2]
[334899798,1723632654231,-500.0,0.00014246,2]
[334899799,1723632654240,-500.0,0.00014246,2]
[334899800,1723632654249,-500.0,0.00014246,2]
[334899801,1723632654259,-802.0,0.00014246,2]
[334899802,1723632654268,-500.0,0.00014246,2]
[334899803,1723632654277,-1202.94,0.00014246,2]
[334899804,1723632654287,-500.0,0.00014246,2]
[334899805,1723632654297,-709.89,0.00014246,2]
[334899806,1723632654306,-500.0,0.00014246,2]
[334899807,1723632654315,-500.0,0.00014246,2]
[334899808,1723632654324,-500.0,0.00014246,2]
[334899809,1723632654334,-735.63,0.00014246,2]
[334899810,1723632654344,-509.34,0.00014246,2]
[334899811,1723632654355,-500.0,0.00014246,2]
[334899812,1723632654366,-500.0,0.00014246,2]
[334899813,1723632654377,-500.0,0.00014246,2]
[334899814,1723632654387,-500.0,0.00014246,2]
[334899815,1723632654402,-500.0,0.00014246,2]
[334899816,1723632654411,-500.0,0.00014246,2]
[334899817,1723632654421,-500.0,0.00014246,2]
[334899818,1723632654431,-500.0,0.00014246,2]
[334899819,1723632654440,-500.0,0.00014246,2]
[334899820,1723632654449,-500.0,0.00014246,2]
[334899821,1723632654459,-535.99,0.00014246,2]
[334899822,1723632654468,-500.0,0.00014246,2]
[334899823,1723632654480,-500.0,0.00014246,2]
[334899824,1723632654489,-500.0,0.00014246,2]
[334899825,1723632654499,-500.0,0.00014246,2]
[334899826,1723632654508,-538.59,0.00014246,2]
[334899827,1723632654517,-500.0,0.00014246,2]
[334899828,1723632654528,-500.0,0.00014246,2]
[334899829,1723632654537,-549.23,0.00014246,2]
[334899830,1723632654548,-523.4147852,0.00014246,2]
[334899831,1723632654557,-500.0,0.00014246,2]
[334899832,1723632654568,-500.0,0.00014246,2]
[334899833,1723632654577,-500.0,0.00014246,2]
[334899834,1723632654586,-500.0,0.00014246,2]
[334899835,1723632654595,-3581.75,0.00014246,2]
[334899836,1723632654605,-500.0,0.00014246,2]
[334899837,1723632654614,-500.0,0.00014246,2]
[334899838,1723632654625,-500.0,0.00014246,2]
[334899839,1723632654634,-500.0,0.00014246,2]
[334899840,1723632654644,-471.72315048,0.00014246,2]
[334899841,1723632654653,-500.0,0.00014246,2]
[334899842,1723632654663,-500.0,0.00014246,2]
[334899843,1723632654672,-500.0,0.00014246,2]
[334899844,1723632654681,-500.0,0.00014246,2]
[334899845,1723632654691,-635.65,0.00014246,2]
[334899846,1723632654700,-151.0,0.00014246,2]
[334899847,1723632654709,-500.0,0.00014246,2]
[334899848,1723632654718,-151.655287,0.00014246,2]
[334899849,1723632654728,-151.0,0.00014246,2]
[334899850,1723632654737,-500.0,0.00014246,2]
[334899851,1723632654746,-500.0,0.00014246,2]
[334899852,1723632654755,-500.0,0.00014246,2]
[334899853,1723632654764,-500.0,0.00014246,2]
[334899854,1723632654773,-512.50607336,0.00014246,2]
[334899855,1723632654783,-500.0,0.00014246,2]
[334899856,1723632654792,-500.0,0.00014246,2]
[334899857,1723632654801,-500.0,0.00014246,2]
[334899858,1723632654811,-500.0,0.00014246,2]
[334899859,1723632654820,-500.0,0.00014246,2]
[334899860,1723632654829,-500.0,0.00014246,2]
[334899861,1723632654839,-1664.95,0.00014246,2]
[334899862,1723632654848,-924.9,0.00014246,2]
[334899863,1723632654857,-500.0,0.00014246,2]
[334899864,1723632654866,-500.0,0.00014246,2]
[334899865,1723632654879,-500.0,0.00014246,2]
[334899866,1723632654888,-503.61,0.00014246,2]
[334899867,1723632654897,-500.0,0.00014246,2]
[334899868,1723632654907,-500.0,0.00014246,2]
[334899869,1723632654916,-564.89,0.00014246,2]
[334899870,1723632654926,-500.0,0.00014246,2]
[334899871,1723632654935,-500.0,0.00014246,2]
[334899872,1723632654945,-500.0,0.00014246,2]
[334899873,1723632654954,-1864.242064,0.00014246,2]
[334899874,1723632654963,-500.0,0.00014246,2]
[334899875,1723632654973,-250.53568514,0.00014246,2]
[334899876,1723632654982,-500.0,0.00014246,2]
[334899877,1723632654992,-500.0,0.00014246,2]
[334899878,1723632655001,-500.0,0.00014246,2]
[334899879,1723632655011,-1864.242064,0.00014246,2]
[334899880,1723632655020,-500.0,0.00014246,2]
[334899881,1723632655030,-151.0,0.00014246,2]
[334899882,1723632655041,-527.18346107,0.00014246,2]
[334899883,1723632655052,-500.0,0.00014246,2]
[334899884,1723632655061,-500.0,0.00014246,2]
[334899885,1723632655071,-516.38135001,0.00014246,2]
[334899886,1723632655082,-500.0,0.00014246,2]
[334899887,1723632655091,-500.0,0.00014246,2]
[334899888,1723632655101,-9179.33,0.00014246,2]
[334899889,1723632655110,-500.0,0.00014246,2]
[334899890,1723632655121,-538.47,0.00014246,2]
[334899891,1723632655131,-500.0,0.00014246,2]
[334899892,1723632655142,-500.0,0.00014246,2]
[334899893,1723632655152,-500.0,0.00014246,2]
[334899894,1723632655161,-500.0,0.00014246,2]
[334899895,1723632655170,-1887.74,0.00014246,2]
[334899896,1723632655180,-500.0,0.00014246,2]
[334899897,1723632655189,-500.0,0.00014246,2]
[334899898,1723632655198,-500.0,0.00014246,2]
[334899899,1723632655208,-500.0,0.00014246,2]
[334899900,1723632655218,-500.0,0.00014246,2]
[334899901,1723632655229,-500.0,0.00014246,2]
[334899902,1723632655239,-712.5,0.00014247,2]
[334899903,1723632655248,-578.995204,0.00014247,2]
[334899904,1723632655259,-2048.17,0.000143,2]
[334899905,1723632655268,-151.0,0.000143,2]
[334899906,1723632655278,-151.0,0.000143,2]
[334899907,1723632655289,-151.0,0.000143,2]
[334899908,1723632655299,-299.041067,0.000143,2]
[334899909,1723632655309,-151.0,0.000143,2]
[334899910,1723632655319,-494.87154082,0.00014519,2]
[334899911,1723632655330,-500.0,0.0001452,2]
[334899912,1723632655341,-575.48116928,0.0001452,2]
[334899913,1723632655351,-500.0,0.0001452,2]
[334899914,1723632655360,-500.0,0.0001452,2]
[334899915,1723632655371,-639.9088332,0.0001452,2]
[334899916,1723632655381,-607.37312671,0.0001452,2]
[334899917,1723632655393,-500.0,0.0001452,2]
[334899918,1723632655402,-500.0,0.0001452,2]
[334899919,1723632655412,-209.2010022,0.0001452,2]
[334899920,1723632655421,-507.77198338,0.0001452,2]
[334899921,1723632655431,-500.0,0.0001452,2]
[334899922,1723632655440,-151.0,0.0001452,2]
[334899923,1723632655450,-151.0,0.0001452,2]
[334899924,1723632655460,-500.0,0.0001452,2]
[334899925,1723632655471,-500.0,0.0001452,2]
[334899926,1723632655480,-505.11736317,0.0001452,2]
[334899927,1723632655490,-500.0,0.0001452,2]
[334899928,1723632655499,-509.89254846,0.0001452,2]
[334899929,1723632655509,-506.66958703,0.0001452,2]
[334899930,1723632655519,-502.04033354,0.0001452,2]
[334899931,1723632655528,-478.66878333,0.0001452,2]
[334899932,1723632655538,-510.51254175,0.0001452,2]
[334899933,1723632655548,-500.0,0.0001452,2]
[334899934,1723632655558,-500.0,0.0001452,2]
[334899935,1723632655567,-500.0,0.0001452,2]
[334899936,1723632655577,-500.0,0.0001452,2]
[334899937,1723632655587,-500.0,0.0001452,2]
[334899938,1723632655597,-500.0,0.0001452,2]
[334899939,1723632655606,-500.0,0.0001452,2]
[334899940,1723632655615,-500.0,0.0001452,2]
[334899941,1723632655627,-640.06,0.0001452,2]
[334899942,1723632655637,-626.91,0.0001452,2]
[334899943,1723632655647,-500.0,0.0001452,2]
[334899944,1723632655656,-487.02895365,0.0001452,2]
[334899945,1723632655666,-500.0,0.0001452,2]
[334899946,1723632655675,-500.0,0.0001452,2]
[334899947,1723632655686,-509.09467316,0.0001452,2]
[334899948,1723632655695,-298.38625334,0.0001452,2]
[334899949,1723632655704,-1007.73,0.0001452,2]
[334899950,1723632655714,-500.0,0.0001452,2]
[334899951,1723632655724,-500.0,0.0001452,2]
[334899952,1723632655734,-500.0,0.0001452,2]
[334899953,1723632655744,-650.58,0.0001452,2]
[334899954,1723632655754,-506.32307795,0.0001452,2]
[334899955,1723632655763,-506.29888616,0.0001452,2]
[334899956,1723632655772,-500.0,0.0001452,2]
[334899957,1723632655782,-605.9449317,0.0001452,2]
[334899958,1723632655791,-342.12219296,0.0001452,2]
[334899959,1723632655801,-500.0,0.0001452,2]
[334899960,1723632655810,-500.0,0.0001452,2]
[334899961,1723632655820,-1343.063916,0.0001452,2]
[334899962,1723632655829,-500.0,0.0001452,2]
[334899963,1723632655838,-507.17426552,0.0001452,2]
[334899964,1723632655847,-500.0,0.0001452,2]
[334899965,1723632655857,-1343.063916,0.0001452,2]
[334899966,1723632655867,-500.0,0.0001452,2]
[334899967,1723632655878,-504.52355446,0.0001452,2]
[334899968,1723632655887,-500.0,0.0001452,2]
[334899969,1723632655897,-529.14,0.0001452,2]
[334899970,1723632655907,-500.0,0.0001452,2]
[334899971,1723632655917,-511.64241606,0.0001452,2]
[334899972,1723632655927,-525.48094796,0.0001452,2]
[334899973,1723632655937,-500.0,0.0001452,2]
[334899974,1723632655947,-500.0,0.0001452,2]
[334899975,1723632655957,-500.0,0.0001452,2]
[334899976,1723632655967,-626.13,0.0001452,2]
[334899977,1723632655977,-500.0,0.0001452,2]
[334899978,1723632655987,-500.0,0.0001452,2]
[334899979,1723632655996,-500.0,0.0001452,2]
[334899980,1723632656006,-500.0,0.0001452,2]
[334899981,1723632656016,-500.0,0.0001452,2]
[334899982,1723632656025,-500.0,0.0001452,2]
[334899983,1723632656035,-500.0,0.0001452,2]
[334899984,1723632656045,-500.0,0.0001452,2]
[334899985,1723632656055,-500.0,0.0001452,2]
[334899986,1723632656064,-501.00994592,0.0001452,2]
[334899987,1723632656073,-500.0,0.0001452,2]
[334899988,1723632656083,-501.51844714,0.0001452,2]
[334899989,1723632656093,-500.0,0.0001452,2]
[334899990,1723632656103,-500.0,0.0001452,2]
[334899991,1723632656112,-500.0,0.0001452,2]
[334899992,1723632656122,-500.0,0.0001452,2]
[334899993,1723632656131,-500.0,0.0001452,2]
[334899994,1723632656141,-625.85146069,0.0001452,2]
[334899995,1723632656150,-500.0,0.0001452,2]
[334899996,1723632656160,-500.0,0.0001452,2]
[334899997,1723632656170,-500.0,0.0001452,2]
[334899998,1723632656179,-500.0,0.0001452,2]
[334899999,1723632656188,-500.0,0.0001452,2]
[334900000,1723632656198,-500.0,0.0001452,2]
[334900001,1723632656209,-500.0,0.0001452,2]
[334900002,1723632656218,-1169.6,0.0001452,2]
[334900003,1723632656227,-500.0,0.0001452,2]
[334900004,1723632656237,-500.0,0.0001452,2]
[334900005,1723632656248,-500.0,0.0001452,2]
[334900006,1723632656258,-500.0,0.0001452,2]
[334900007,1723632656267,-501.04828112,0.0001452,2]
[334900008,1723632656276,-500.0,0.0001452,2]
[334900009,1723632656286,-500.0,0.0001452,2]
[334900010,1723632656295,-500.0,0.0001452,2]
[334900011,1723632656305,-1035.68,0.0001452,2]
[334900012,1723632656315,-500.0,0.0001452,2]
[334900013,1723632656324,-562.68,0.0001452,2]
[334900014,1723632656334,-500.0,0.0001452,2]
[334900015,1723632656343,-500.0,0.0001452,2]
[334900016,1723632656355,-221.22357672,0.0001452,2]
[334900017,1723632656367,-718.48,0.0001452,2]
[334900018,1723632656378,-500.0,0.0001452,2]
[334900019,1723632656390,-500.0,0.0001452,2]
[334900020,1723632656400,-642.07,0.0001452,2]
[334900021,1723632656410,-500.0,0.0001452,2]
[334900022,1723632656510,-754.57,0.0001452,2]
[334900023,1723632656531,-500.0,0.0001452,2]
[334900024,1723632656542,-500.0,0.0001452,2]
[334900025,1723632656552,-500.0,0.0001452,2]
[334900026,1723632656562,-838.08,0.0001452,2]
[334900027,1723632656572,-500.0,0.0001452,2]
[334900028,1723632656581,-829.71,0.0001452,2]
[334900029,1723632656590,-500.0,0.0001452,2]
[334900030,1723632656599,-500.0,0.0001452,2]
[334900031,1723632656609,-500.0,0.0001452,2]
[334900032,1723632656618,-500.0,0.0001452,2]
[334900033,1723632656631,-500.0,0.0001452,2]
[334900034,1723632656640,-2899.15,0.0001452,2]
[334900035,1723632656649,-500.0,0.0001452,2]
[334900036,1723632656659,-500.0,0.0001452,2]
[334900037,1723632656667,-500.0,0.0001452,2]
[334900038,1723632656676,-745.65,0.0001452,2]
[334900039,1723632656686,-507.50001772,0.0001452,2]
[334900040,1723632656695,-500.0,0.0001452,2]
[334900041,1723632656705,-506.56949209,0.0001452,2]
[334900042,1723632656715,-500.0,0.0001452,2]
[334900043,1723632656725,-500.0,0.0001452,2]
[334900044,1723632656735,-514.02,0.0001452,2]
[334900045,1723632656744,-500.0,0.0001452,2]
[334900046,1723632656755,-500.0,0.0001452,2]
[334900047,1723632656765,-500.0,0.0001452,2]
[334900048,1723632656775,-4316.81,0.0001452,2]
[334900049,1723632656784,-500.0,0.0001452,2]
[334900050,1723632656794,-500.0,0.0001452,2]
[334900051,1723632656804,-500.0,0.0001452,2]
[334900052,1723632656813,-500.0,0.0001452,2]
[334900053,1723632656823,-500.0,0.0001452,2]
[334900054,1723632656832,-500.0,0.0001452,2]
[334900055,1723632656842,-802.0,0.0001452,2]
[334900056,1723632656851,-500.0,0.0001452,2]
[334900057,1723632656861,-1202.94,0.0001452,2]
[334900058,1723632656870,-500.0,0.0001452,2]
[334900059,1723632656885,-709.89,0.0001452,2]
[334900060,1723632656894,-500.0,0.0001452,2]
[334900061,1723632656903,-500.0,0.0001452,2]
[334900062,1723632656913,-502.88120269,0.0001452,2]
[334900063,1723632656922,-735.63,0.0001452,2]
[334900064,1723632656931,-509.34,0.0001452,2]
[334900065,1723632656940,-500.0,0.0001452,2]
[334900066,1723632656949,-500.0,0.0001452,2]
[334900067,1723632656959,-500.0,0.0001452,2]
[334900068,1723632656969,-500.0,0.0001452,2]
[334900069,1723632656979,-500.0,0.0001452,2]
[334900070,1723632656988,-500.0,0.0001452,2]
[334900071,1723632656997,-500.0,0.0001452,2]
[334900072,1723632657006,-507.47288845,0.0001452,2]
[334900073,1723632657016,-500.0,0.0001452,2]
[334900074,1723632657025,-500.0,0.0001452,2]
[334900075,1723632657035,-535.99,0.0001452,2]
[334900076,1723632657045,-500.0,0.0001452,2]
[334900077,1723632657055,-500.0,0.0001452,2]
[334900078,1723632657064,-274.217258,0.0001452,2]
[334900079,1723632657074,-500.0,0.0001452,2]
[334900080,1723632657083,-538.59,0.0001452,2]
[334900081,1723632657092,-500.0,0.0001452,2]
[334900082,1723632657101,-500.0,0.0001452,2]
[334900083,1723632657111,-549.23,0.0001452,2]
[334900084,1723632657120,-500.0,0.0001452,2]
[334900085,1723632657137,-500.0,0.0001452,2]
[334900086,1723632657150,-500.0,0.0001452,2]
[334900087,1723632657159,-500.0,0.0001452,2]
[334900088,1723632657169,-3581.75,0.0001452,2]
[334900089,1723632657178,-500.0,0.0001452,2]
[334900090,1723632657188,-500.0,0.0001452,2]
[334900091,1723632657197,-500.0,0.0001452,2]
[334900092,1723632657206,-500.0,0.0001452,2]
[334900093,1723632657216,-500.0,0.0001452,2]
[334900094,1723632657225,-500.0,0.0001452,2]
[334900095,1723632657235,-500.0,0.0001452,2]
[334900096,1723632657245,-635.65,0.0001452,2]
[334900097,1723632657254,-500.0,0.0001452,2]
[334900098,1723632657263,-500.0,0.0001452,2]
[334900099,1723632657273,-521.90689295,0.0001452,2]
[334900100,1723632657282,-500.0,0.0001452,2]
[334900101,1723632657291,-500.0,0.0001452,2]
[334900102,1723632657301,-507.1729502,0.0001452,2]
[334900103,1723632657311,-500.0,0.0001452,2]
[334900104,1723632657320,-506.65142201,0.0001452,2]
[334900105,1723632657329,-500.0,0.0001452,2]
[334900106,1723632657338,-924.9,0.0001452,2]
[334900107,1723632657348,-1664.95,0.0001452,2]
[334900108,1723632657357,-500.0,0.0001452,2]
[334900109,1723632657367,-500.0,0.0001452,2]
[334900110,1723632657380,-503.61,0.0001452,2]
[334900111,1723632657390,-500.0,0.0001452,2]
[334900112,1723632657401,-500.0,0.0001452,2]
[334900113,1723632657410,-564.89,0.0001452,2]
[334900114,1723632657419,-500.0,0.0001452,2]
[334900115,1723632657428,-500.0,0.0001452,2]
[334900116,1723632657438,-500.0,0.0001452,2]
[334900117,1723632657447,-500.0,0.0001452,2]
[334900118,1723632657457,-500.0,0.0001452,2]
[334900119,1723632657468,-500.0,0.0001452,2]
[334900120,1723632657478,-500.0,0.0001452,2]
[334900121,1723632657487,-500.0,0.0001452,2]
[334900122,1723632657498,-500.0,0.0001452,2]
[334900123,1723632657508,-500.0,0.0001452,2]
[334900124,1723632657517,-500.0,0.0001452,2]
[334900125,1723632657526,-9179.33,0.0001452,2]
[334900126,1723632657535,-500.0,0.0001452,2]
[334900127,1723632657544,-538.47,0.0001452,2]
[334900128,1723632657554,-151.0,0.0001452,2]
[334900129,1723632657575,-523.60849435,0.0001452,2]
[334900130,1723632657585,-500.0,0.0001452,2]
[334900131,1723632657595,-500.0,0.0001452,2]
[334900132,1723632657605,-151.0,0.0001452,2]
[334900133,1723632657615,-500.0,0.0001452,2]
[334900134,1723632657626,-1887.74,0.0001452,2]
[334900135,1723632657637,-500.0,0.0001452,2]
[334900136,1723632657647,-500.0,0.0001452,2]
[334900137,1723632657657,-500.0,0.0001452,2]
[334900138,1723632657667,-500.0,0.0001452,2]
[334900139,1723632657677,-500.0,0.0001452,2]
[334900140,1723632657687,-388.42045515,0.000146,2]
[334900141,1723632657696,-1000.0,0.00014619,2]
[334900142,1723632657707,-5324.10913299,0.00014685,2]
[334900143,1723632657716,-151.0,0.00014721,2]
[334900144,1723632657726,-3200.0,0.00014721,2]
[334900145,1723632657737,-154.76012181,0.00014794,2]
[334900146,1723632657747,-287.89739983,0.00014794,2]
[334900147,1723632657757,-500.0,0.00014794,2]
[334900148,1723632657767,-500.0,0.00014794,2]
[334900149,1723632657777,-500.0,0.00014794,2]
[334900150,1723632657787,-500.0,0.00014794,2]
[334900151,1723632657797,-500.0,0.00014794,2]
[334900152,1723632657806,-500.0,0.00014794,2]
[334900153,1723632657816,-500.0,0.00014794,2]
[334900154,1723632657826,-500.0,0.00014794,2]
[334900155,1723632657837,-500.0,0.00014794,2]
[334900156,1723632657847,-500.0,0.00014794,2]
[334900157,1723632657856,-500.0,0.00014794,2]
[334900158,1723632657866,-546.51468707,0.00014794,2]
[334900159,1723632657877,-504.39364196,0.00014794,2]
[334900160,1723632657886,-500.0,0.00014794,2]
[334900161,1723632657896,-500.0,0.00014794,2]
[334900162,1723632657906,-500.0,0.00014794,2]
[334900163,1723632657915,-500.0,0.00014794,2]
[334900164,1723632657925,-640.06,0.00014794,2]
[334900165,1723632657934,-626.91,0.00014794,2]
[334900166,1723632657945,-500.0,0.00014794,2]
[334900167,1723632657956,-500.0,0.00014794,2]
[334900168,1723632657967,-1007.73,0.00014794,2]
[334900169,1723632657976,-500.0,0.00014794,2]
[334900170,1723632657987,-505.46616343,0.00014794,2]
[334900171,1723632657996,-650.58,0.00014794,2]
[334900172,1723632658006,-500.0,0.00014794,2]
[334900173,1723632658016,-500.0,0.00014794,2]
[334900174,1723632658026,-500.0,0.00014794,2]
[334900175,1723632658035,-500.0,0.00014794,2]
[334900176,1723632658045,-500.0,0.00014794,2]
[334900177,1723632658055,-500.0,0.00014794,2]
[334900178,1723632658064,-500.0,0.00014794,2]
[334900179,1723632658074,-529.14,0.00014794,2]
[334900180,1723632658084,-500.0,0.00014794,2]
[334900181,1723632658094,-500.0,0.00014794,2]
[334900182,1723632658103,-626.13,0.00014794,2]
[334900183,1723632658113,-500.0,0.00014794,2]
[334900184,1723632658124,-500.0,0.00014794,2]
[334900185,1723632658136,-500.0,0.00014794,2]
[334900186,1723632658145,-500.0,0.00014794,2]
[334900187,1723632658155,-500.0,0.00014794,2]
[334900188,1723632658165,-638.56117203,0.00014794,2]
[334900189,1723632658175,-500.0,0.00014794,2]
[334900190,1723632658184,-500.0,0.00014794,2]
[334900191,1723632658193,-500.0,0.00014794,2]
[334900192,1723632658204,-500.0,0.00014794,2]
[334900193,1723632658214,-501.94825757,0.00014794,2]
[334900194,1723632658224,-500.0,0.00014794,2]
[334900195,1723632658234,-500.0,0.00014794,2]
[334900196,1723632658243,-500.0,0.00014794,2]
[334900197,1723632658255,-500.0,0.00014794,2]
[334900198,1723632658266,-500.0,0.00014794,2]
[334900199,1723632658276,-3774.311217,0.00014794,2]
[334900200,1723632658286,-407.99483779,0.00014794,2]
[334900201,1723632658295,-500.0,0.00014794,2]
[334900202,1723632658307,-3774.311217,0.00014794,2]
[334900203,1723632658319,-500.0,0.00014794,2]
[334900204,1723632658330,-500.0,0.00014794,2]
[334900205,1723632658340,-618.76041107,0.00014794,2]
[334900206,1723632658350,-500.0,0.00014794,2]
[334900207,1723632658360,-1169.6,0.00014794,2]
[334900208,1723632658371,-500.0,0.00014794,2]
[334900209,1723632658382,-632.2404493,0.00014794,2]
[334900210,1723632658395,-500.0,0.00014794,2]
[334900211,1723632658405,-500.0,0.00014794,2]